[Event "Live Chess"]
[Site "Chess.com"]
[Date "2023.09.16"]
[Round "-"]
[White "silvaaps"]
[Black "Gustavoksbr"]
[Result "0-1"]
[WhiteElo "760"]
[BlackElo "1901"]
[TimeControl "900+5"]
[EndTime "16:01:21 PDT"]
[Termination "Gustavoksbr venceu por desistência"]

1. e4 {[%clk 0:15:04.5]} 1... e5 {[%clk 0:15:03.8]} 2. Nf3 {[%clk 0:15:08.2]}
2... Nc6 {[%clk 0:15:08.1]} 3. Bb5 {[%clk 0:15:10]} 3... a6 {[%clk 0:15:11.4]}
4. Bxc6 {[%clk 0:15:13.7]} 4... dxc6 {[%clk 0:15:16.3]} 5. O-O {[%clk
0:15:17.7]} 5... Bg4 {[%clk 0:15:03.2]} 6. d4 {[%clk 0:15:19.4]} 6... exd4
{[%clk 0:14:44.9]} 7. Qxd4 {[%clk 0:15:20.8]} 7... Bxf3 {[%clk 0:14:46.5]} 8.
Qxd8+ {[%clk 0:15:24.2]} 8... Rxd8 {[%clk 0:14:50.4]} 9. gxf3 {[%clk 0:15:28.6]}
9... Nf6 {[%clk 0:14:34.9]} 10. Bg5 {[%clk 0:15:32.1]} 10... Be7 {[%clk
0:14:30]} 11. Bxf6 {[%clk 0:15:35.8]} 11... Bxf6 {[%clk 0:14:33.4]} 12. Nc3
{[%clk 0:15:40.4]} 12... Rd2 {[%clk 0:14:32.3]} 13. Rac1 {[%clk 0:15:40]} 13...
O-O {[%clk 0:14:25.7]} 14. f4 {[%clk 0:15:38.8]} 14... Bxc3 {[%clk 0:14:17.5]}
15. bxc3 {[%clk 0:15:40.2]} 15... Rfd8 {[%clk 0:14:19.1]} 16. e5 {[%clk
0:15:41.4]} 16... Kf8 {[%clk 0:13:58.8]} 17. Kg2 {[%clk 0:15:45]} 17... Ke7
{[%clk 0:14:01.1]} 18. Kg3 {[%clk 0:15:49.2]} 18... Ke6 {[%clk 0:14:00.6]} 19.
Kg4 {[%clk 0:15:53.7]} 19... g6 {[%clk 0:14:04.2]} 20. h4 {[%clk 0:15:57.2]}
20... f5+ {[%clk 0:13:22.2]} 21. Kg5 {[%clk 0:16:00]} 21... Re2 {[%clk
0:13:14.5]} 22. h5 {[%clk 0:16:00.2]} 22... Rdd2 {[%clk 0:13:02.4]} 23. hxg6
{[%clk 0:15:56]} 23... hxg6 {[%clk 0:13:05.7]} 24. Kxg6 {[%clk 0:15:59.8]} 24...
Rxf2 {[%clk 0:13:02.9]} 25. Rxf2 {[%clk 0:16:03.6]} 25... Rxf2 {[%clk
0:13:07.8]} 26. Kg5 {[%clk 0:16:04.8]} 26... Rg2+ {[%clk 0:13:08.6]} 27. Kh4
{[%clk 0:16:07.6]} 27... Rg4+ {[%clk 0:13:12.3]} 28. Kh5 {[%clk 0:16:09.7]}
28... Rxf4 {[%clk 0:13:16.1]} 29. Rb1 {[%clk 0:16:10.2]} 29... b5 {[%clk
0:13:16.9]} 30. Re1 {[%clk 0:16:05.9]} 30... Re4 {[%clk 0:13:18.8]} 31. Rf1
{[%clk 0:15:53.2]} 31... Kxe5 {[%clk 0:13:09.7]} 32. Kg5 {[%clk 0:15:55.8]}
32... Rg4+ {[%clk 0:13:09.6]} 33. Kh5 {[%clk 0:15:58.8]} 33... Rg2 {[%clk
0:13:07.9]} 34. Re1+ {[%clk 0:16:00.3]} 34... Kf6 {[%clk 0:13:09.4]} 35. Kh4
{[%clk 0:15:53.4]} 35... f4 {[%clk 0:13:05.6]} 36. Kh3 {[%clk 0:15:50.5]} 36...
Rg3+ {[%clk 0:13:05]} 37. Kh2 {[%clk 0:15:53.8]} 37... Kf5 {[%clk 0:13:07.4]}
38. Rf1 {[%clk 0:15:57.7]} 38... Rxc3 {[%clk 0:13:07.1]} 0-1

[Event "Live Chess"]
[Site "Chess.com"]
[Date "2023.09.16"]
[Round "-"]
[White "Jonas_Rodrigues"]
[Black "abcgames2904"]
[Result "0-1"]
[WhiteElo "1288"]
[BlackElo "1192"]
[TimeControl "900+5"]
[EndTime "16:01:27 PDT"]
[Termination "abcgames2904 venceu por xeque-mate"]

1. e4 {[%clk 0:15:03.7]} 1... e5 {[%clk 0:15:04.1]} 2. f4 {[%clk 0:15:07.9]}
2... Nc6 {[%clk 0:15:08.7]} 3. Nf3 {[%clk 0:15:09.6]} 3... exf4 {[%clk
0:15:11.5]} 4. d4 {[%clk 0:15:13]} 4... d6 {[%clk 0:15:07.2]} 5. Bxf4 {[%clk
0:15:14.7]} 5... Bg4 {[%clk 0:15:10.8]} 6. Bd3 {[%clk 0:15:00.6]} 6... Nf6
{[%clk 0:15:10.8]} 7. O-O {[%clk 0:15:00.2]} 7... Qd7 {[%clk 0:15:13.4]} 8. e5
{[%clk 0:15:02.1]} 8... dxe5 {[%clk 0:15:16.6]} 9. dxe5 {[%clk 0:15:05.1]} 9...
Nh5 {[%clk 0:15:18.9]} 10. e6 {[%clk 0:14:14.3]} 10... fxe6 {[%clk 0:15:12.2]}
11. Bg5 {[%clk 0:14:10.1]} 11... h6 {[%clk 0:15:13.5]} 12. Be3 {[%clk
0:14:08.3]} 12... O-O-O {[%clk 0:15:07]} 13. h3 {[%clk 0:14:11.9]} 13... Bf5
{[%clk 0:15:04.6]} 14. Nc3 {[%clk 0:13:56.1]} 14... Ng3 {[%clk 0:15:04.1]} 15.
Bxf5 {[%clk 0:13:47.7]} 15... Nxf5 {[%clk 0:14:57.6]} 16. Qxd7+ {[%clk
0:13:46.3]} 16... Rxd7 {[%clk 0:15:00.4]} 17. Bf4 {[%clk 0:13:45]} 17... g5
{[%clk 0:15:01.5]} 18. Bh2 {[%clk 0:13:48.1]} 18... Bc5+ {[%clk 0:15:04.6]} 19.
Kh1 {[%clk 0:13:48.1]} 19... Ne3 {[%clk 0:15:07.7]} 20. Rfe1 {[%clk 0:13:48]}
20... Nxc2 {[%clk 0:15:11.5]} 21. Ne4 {[%clk 0:13:45.2]} 21... Nxa1 {[%clk
0:15:10.7]} 22. Nxc5 {[%clk 0:13:46.1]} 22... Rd5 {[%clk 0:15:14.5]} 23. Rxa1
{[%clk 0:13:22.1]} 23... Rxc5 {[%clk 0:15:16.5]} 24. Bg1 {[%clk 0:13:24]} 24...
Rc2 {[%clk 0:15:17.5]} 25. Rb1 {[%clk 0:13:24]} 25... h5 {[%clk 0:15:21.1]} 26.
Nd4 {[%clk 0:13:27.5]} 26... Nxd4 {[%clk 0:15:23.5]} 27. Bxd4 {[%clk 0:13:31.5]}
27... Rd8 {[%clk 0:15:24.1]} 28. Bxa7 {[%clk 0:13:34.3]} 28... Rdd2 {[%clk
0:15:27.7]} 29. Rf1 {[%clk 0:13:27.2]} 29... Rxg2 {[%clk 0:15:27.8]} 30. Rf8+
{[%clk 0:13:30.9]} 30... Kd7 {[%clk 0:15:31.6]} 31. Bg1 {[%clk 0:13:28.6]} 31...
Rg3 {[%clk 0:15:28.5]} 32. Bf2 {[%clk 0:13:16.1]} 32... Rxh3+ {[%clk 0:15:29.7]}
33. Kg1 {[%clk 0:13:20.4]} 33... Rc1+ {[%clk 0:15:31.4]} 34. Kg2 {[%clk
0:13:23.5]} 34... g4 {[%clk 0:15:35]} 35. Be3 {[%clk 0:13:24.7]} 35... Rxe3
{[%clk 0:15:38.2]} 36. Rf7+ {[%clk 0:13:27.5]} 36... Kd6 {[%clk 0:15:41.6]} 37.
Rh7 {[%clk 0:13:31.2]} 37... Rc2+ {[%clk 0:15:43.7]} 38. Kf1 {[%clk 0:13:32.3]}
38... Rh3 {[%clk 0:15:48]} 39. Kg1 {[%clk 0:13:32.8]} 39... g3 {[%clk
0:15:50.1]} 40. Rf7 {[%clk 0:13:31.6]} 40... Rhh2 {[%clk 0:15:53.6]} 41. Rf1
{[%clk 0:13:30]} 41... Rcg2# {[%clk 0:15:57.2]} 0-1

[Event "Live Chess"]
[Site "Chess.com"]
[Date "2023.09.16"]
[Round "-"]
[White "Japaawz"]
[Black "Ferazo"]
[Result "0-1"]
[WhiteElo "413"]
[BlackElo "1415"]
[TimeControl "900+5"]
[EndTime "16:02:31 PDT"]
[Termination "Ferazo venceu por desistência"]

1. e4 {[%clk 0:15:03.4]} 1... c5 {[%clk 0:14:57.9]} 2. d3 {[%clk 0:15:07.5]}
2... d6 {[%clk 0:14:58.9]} 3. Nc3 {[%clk 0:15:08.3]} 3... Nf6 {[%clk 0:15:02.5]}
4. Be3 {[%clk 0:15:05.6]} 4... Nc6 {[%clk 0:15:01.3]} 5. Qf3 {[%clk 0:15:06.8]}
5... g6 {[%clk 0:14:43.6]} 6. O-O-O {[%clk 0:15:01.5]} 6... Bg7 {[%clk
0:14:46.8]} 7. g3 {[%clk 0:14:48.9]} 7... Bg4 {[%clk 0:14:49.3]} 8. Qf4 {[%clk
0:14:43.9]} 8... Bxd1 {[%clk 0:14:52.3]} 9. Nxd1 {[%clk 0:14:48.8]} 9... O-O
{[%clk 0:14:52.2]} 10. Nf3 {[%clk 0:14:50.5]} 10... d5 {[%clk 0:14:39.7]} 11.
Nc3 {[%clk 0:14:45.5]} 11... d4 {[%clk 0:14:43.5]} 12. e5 {[%clk 0:14:43.8]}
12... Nd7 {[%clk 0:14:25.2]} 13. Bh3 {[%clk 0:13:57.6]} 13... dxe3 {[%clk
0:14:21]} 14. Qxe3 {[%clk 0:13:59.3]} 14... Ndxe5 {[%clk 0:14:18.7]} 15. Nxe5
{[%clk 0:14:00.1]} 15... Nxe5 {[%clk 0:14:23.6]} 16. Ne4 {[%clk 0:14:03.4]}
16... Qd4 {[%clk 0:14:19.7]} 17. Qg5 {[%clk 0:13:22.3]} 17... Nf3 {[%clk
0:14:11.8]} 18. Qg4 {[%clk 0:13:07.3]} 18... Qxb2+ {[%clk 0:14:13.6]} 19. Kd1
{[%clk 0:13:06.3]} 19... Qb1+ {[%clk 0:14:09.8]} 20. Ke2 {[%clk 0:12:18.8]}
20... Nd4+ {[%clk 0:14:08.6]} 21. Kd2 {[%clk 0:11:51.5]} 21... Qxh1 {[%clk
0:13:42]} 22. Ng5 {[%clk 0:11:56.4]} 22... Bh6 {[%clk 0:13:39.7]} 23. c3 {[%clk
0:11:45.7]} 23... Bxg5+ {[%clk 0:13:38.5]} 24. Qxg5 {[%clk 0:11:46.8]} 24...
Nf3+ {[%clk 0:13:42.5]} 25. Ke2 {[%clk 0:11:46.4]} 25... Nxg5 {[%clk 0:13:47.4]}
0-1

[Event "Live Chess"]
[Site "Chess.com"]
[Date "2023.09.16"]
[Round "-"]
[White "Mateus_Claudius"]
[Black "GilbertoGOFaria"]
[Result "1-0"]
[WhiteElo "1344"]
[BlackElo "1632"]
[TimeControl "900+5"]
[EndTime "16:03:23 PDT"]
[Termination "Mateus_Claudius venceu por desistência"]

1. e4 {[%clk 0:15:01.1]} 1... c5 {[%clk 0:15:02.9]} 2. Nf3 {[%clk 0:15:03.4]}
2... d6 {[%clk 0:14:49.4]} 3. Bb5+ {[%clk 0:15:04.8]} 3... Nc6 {[%clk
0:14:50.7]} 4. O-O {[%clk 0:15:02.1]} 4... g6 {[%clk 0:14:42.2]} 5. d4 {[%clk
0:14:42.7]} 5... a6 {[%clk 0:14:25.1]} 6. Bxc6+ {[%clk 0:14:41.2]} 6... bxc6
{[%clk 0:14:29.5]} 7. dxc5 {[%clk 0:14:37.1]} 7... d5 {[%clk 0:14:17.5]} 8. exd5
{[%clk 0:14:28.2]} 8... cxd5 {[%clk 0:14:22.4]} 9. Nc3 {[%clk 0:14:31.9]} 9...
Nf6 {[%clk 0:14:23.8]} 10. Bg5 {[%clk 0:13:59]} 10... e6 {[%clk 0:13:50.6]} 11.
Re1 {[%clk 0:13:09.7]} 11... Bxc5 {[%clk 0:13:45.4]} 12. Bxf6 {[%clk 0:12:51.2]}
12... Qxf6 {[%clk 0:13:08.4]} 13. Qxd5 {[%clk 0:12:44.3]} 13... Bxf2+ {[%clk
0:12:01]} 14. Kxf2 {[%clk 0:12:42.6]} 14... Ra7 {[%clk 0:11:49.4]} 15. Qc5
{[%clk 0:11:39.4]} 15... Ra8 {[%clk 0:11:16]} 16. Qc6+ {[%clk 0:11:29.6]} 16...
Kf8 {[%clk 0:11:01.9]} 17. Qxa8 {[%clk 0:11:26.4]} 17... Kg7 {[%clk 0:11:05.8]}
18. Qe4 {[%clk 0:11:18.1]} 18... Qe7 {[%clk 0:10:59.5]} 19. Rad1 {[%clk
0:11:12.8]} 19... Bb7 {[%clk 0:10:59.9]} 20. Qe2 {[%clk 0:11:05.9]} 20... Rc8
{[%clk 0:10:45.5]} 21. Kg1 {[%clk 0:10:08.1]} 21... Qb4 {[%clk 0:10:47.2]} 22.
Nb1 {[%clk 0:08:33]} 22... Qxb2 {[%clk 0:10:09.3]} 23. Ne5 {[%clk 0:08:32.3]}
23... Rxc2 {[%clk 0:09:24.9]} 24. Rd2 {[%clk 0:08:24.1]} 24... Qb6+ {[%clk
0:08:19.1]} 25. Kh1 {[%clk 0:08:13.4]} 25... Rc8 {[%clk 0:08:01.6]} 26. Rd7
{[%clk 0:07:50.7]} 26... Rf8 {[%clk 0:07:49.8]} 27. Red1 {[%clk 0:07:02.1]}
27... Qb4 {[%clk 0:06:38.6]} 28. h3 {[%clk 0:06:22.1]} 28... Bd5 {[%clk
0:06:30.8]} 29. Qxa6 {[%clk 0:05:16]} 29... Qb2 {[%clk 0:06:28.9]} 30. Rg1
{[%clk 0:04:52.2]} 30... Qxe5 {[%clk 0:06:27.7]} 31. a4 {[%clk 0:04:41.4]} 31...
Ra8 {[%clk 0:06:05.1]} 32. Qb5 {[%clk 0:04:27.1]} 32... Qe4 {[%clk 0:06:05.7]}
33. Nc3 {[%clk 0:04:18.4]} 33... Qc4 {[%clk 0:05:38.3]} 34. Nxd5 {[%clk
0:04:08.7]} 34... Qxb5 {[%clk 0:05:38.2]} 35. axb5 {[%clk 0:04:12]} 35... exd5
{[%clk 0:05:41.8]} 36. Rxd5 {[%clk 0:04:16.5]} 36... Ra5 {[%clk 0:05:45.7]} 37.
Rb1 {[%clk 0:04:13.6]} 37... h5 {[%clk 0:05:49.5]} 38. Rd8 {[%clk 0:04:11.4]}
38... Rxb5 {[%clk 0:05:17.3]} 39. Rxb5 {[%clk 0:04:12]} 39... h4 {[%clk
0:05:22.2]} 40. Rd7 {[%clk 0:04:12.8]} 40... Kf6 {[%clk 0:05:25.9]} 41. Rbb7
{[%clk 0:04:15.2]} 41... Kg5 {[%clk 0:05:30.8]} 42. Rxf7 {[%clk 0:04:15.1]}
42... Kh5 {[%clk 0:05:34.5]} 43. Rb5+ {[%clk 0:04:11]} 43... Kh6 {[%clk
0:05:37.9]} 44. Rf6 {[%clk 0:04:06.8]} 44... Kh7 {[%clk 0:05:33]} 45. Rbb6
{[%clk 0:04:06.4]} 45... Kh6 {[%clk 0:05:34.5]} 46. Rxg6+ {[%clk 0:04:09.6]}
46... Kh5 {[%clk 0:05:39.4]} 47. Rh6+ {[%clk 0:04:05]} 47... Kg5 {[%clk
0:05:43.4]} 48. Rbg6+ {[%clk 0:04:08.7]} 48... Kf4 {[%clk 0:05:46.8]} 49. Rxh4+
{[%clk 0:04:11.5]} 49... Kf5 {[%clk 0:05:50.2]} 50. Rg8 {[%clk 0:04:10.1]} 50...
Ke5 {[%clk 0:05:50.5]} 51. Rf8 {[%clk 0:04:13.2]} 51... Ke6 {[%clk 0:05:53.5]}
52. Re4+ {[%clk 0:04:14.4]} 52... Kd7 {[%clk 0:05:57.4]} 53. Rf6 {[%clk
0:04:15.6]} 1-0

[Event "Live Chess"]
[Site "Chess.com"]
[Date "2023.09.16"]
[Round "-"]
[White "Miinero"]
[Black "FerreiraPedro"]
[Result "1-0"]
[WhiteElo "1923"]
[BlackElo "1400"]
[TimeControl "900+5"]
[EndTime "16:04:14 PDT"]
[Termination "Miinero venceu por xeque-mate"]

1. e4 {[%clk 0:14:57]} 1... e5 {[%clk 0:15:00.6]} 2. Nf3 {[%clk 0:15:00.7]} 2...
Nf6 {[%clk 0:15:02]} 3. Bc4 {[%clk 0:14:58.2]} 3... Nxe4 {[%clk 0:15:04.8]} 4.
Nc3 {[%clk 0:15:02.2]} 4... Nxc3 {[%clk 0:15:06.5]} 5. dxc3 {[%clk 0:15:07.1]}
5... Nc6 {[%clk 0:15:07.9]} 6. O-O {[%clk 0:15:10]} 6... Bc5 {[%clk 0:15:08.4]}
7. Bxf7+ {[%clk 0:15:08.7]} 7... Kxf7 {[%clk 0:15:12.2]} 8. Qd5+ {[%clk
0:15:11.9]} 8... Ke8 {[%clk 0:15:03.9]} 9. Ng5 {[%clk 0:15:05.4]} 9... Qf6
{[%clk 0:14:45.5]} 10. Qxc5 {[%clk 0:14:52.9]} 10... d6 {[%clk 0:14:43.1]} 11.
Qd5 {[%clk 0:14:52.8]} 11... h6 {[%clk 0:14:36.9]} 12. Ne4 {[%clk 0:14:54.2]}
12... Qe6 {[%clk 0:14:37.6]} 13. Qd3 {[%clk 0:14:48.1]} 13... Rf8 {[%clk
0:14:16.3]} 14. Ng3 {[%clk 0:14:48.6]} 14... Qg4 {[%clk 0:14:03.4]} 15. Be3
{[%clk 0:14:32.9]} 15... Bf5 {[%clk 0:13:52]} 16. Nxf5 {[%clk 0:14:35.7]} 16...
Qxf5 {[%clk 0:13:55.6]} 17. Rad1 {[%clk 0:14:36.2]} 17... Qxd3 {[%clk
0:13:51.4]} 18. Rxd3 {[%clk 0:14:41.1]} 18... Ke7 {[%clk 0:13:51.3]} 19. b4
{[%clk 0:14:42.4]} 19... a6 {[%clk 0:13:51.5]} 20. h3 {[%clk 0:14:43.2]} 20...
Ke6 {[%clk 0:13:51.4]} 21. a3 {[%clk 0:14:46.3]} 21... Ne7 {[%clk 0:13:54.6]}
22. c4 {[%clk 0:14:49.7]} 22... b5 {[%clk 0:13:51.8]} 23. c5 {[%clk 0:14:48.4]}
23... Nf5 {[%clk 0:13:43.8]} 24. cxd6 {[%clk 0:14:31.9]} 24... Nxe3 {[%clk
0:13:43.9]} 25. Rxe3 {[%clk 0:14:30.6]} 25... cxd6 {[%clk 0:13:46.2]} 26. Rd1
{[%clk 0:14:29.2]} 26... Rac8 {[%clk 0:13:47.6]} 27. Rdd3 {[%clk 0:14:22.5]}
27... Rxc2 {[%clk 0:13:43.4]} 28. Rg3 {[%clk 0:14:25.2]} 28... g5 {[%clk
0:13:38.1]} 29. f3 {[%clk 0:14:28.2]} 29... d5 {[%clk 0:13:24.4]} 30. h4 {[%clk
0:14:31.4]} 30... gxh4 {[%clk 0:13:22.8]} 31. Rg6+ {[%clk 0:14:28.9]} 31... Rf6
{[%clk 0:13:26.8]} 32. Rxf6+ {[%clk 0:14:32.8]} 32... Kxf6 {[%clk 0:13:31.3]}
33. Rxd5 {[%clk 0:14:37.2]} 33... Ke6 {[%clk 0:13:29.6]} 34. Rd8 {[%clk
0:14:38.3]} 34... Ra2 {[%clk 0:13:24.3]} 35. Rh8 {[%clk 0:14:35.8]} 35... Rxa3
{[%clk 0:13:21]} 36. Rxh6+ {[%clk 0:14:39.2]} 36... Kf5 {[%clk 0:13:21.2]} 37.
Rxh4 {[%clk 0:14:41.9]} 37... a5 {[%clk 0:13:07.4]} 38. bxa5 {[%clk 0:14:44.5]}
38... Rxa5 {[%clk 0:13:12.3]} 39. Rb4 {[%clk 0:14:48.4]} 39... Ke6 {[%clk
0:12:40]} 40. g4 {[%clk 0:14:50.8]} 40... Ra1+ {[%clk 0:12:41.3]} 41. Kg2 {[%clk
0:14:54.3]} 41... Ra2+ {[%clk 0:12:42.6]} 42. Kg3 {[%clk 0:14:58.3]} 42... Ra1
{[%clk 0:12:40.1]} 43. Rxb5 {[%clk 0:15:01.8]} 43... Rg1+ {[%clk 0:12:43.7]} 44.
Kf2 {[%clk 0:15:06]} 44... Rh1 {[%clk 0:12:44.8]} 45. Rb6+ {[%clk 0:15:08.7]}
45... Kd5 {[%clk 0:12:48.6]} 46. g5 {[%clk 0:15:11.7]} 46... Rh2+ {[%clk
0:12:49.5]} 47. Kg3 {[%clk 0:15:14.5]} 47... Rh8 {[%clk 0:12:51.1]} 48. Rf6
{[%clk 0:15:14.6]} 48... e4 {[%clk 0:12:48.6]} 49. fxe4+ {[%clk 0:15:17.7]}
49... Kxe4 {[%clk 0:12:52.9]} 50. Kg4 {[%clk 0:15:17.4]} 50... Rh1 {[%clk
0:12:48]} 51. g6 {[%clk 0:15:16.5]} 51... Rg1+ {[%clk 0:12:52.2]} 52. Kh5 {[%clk
0:15:20.6]} 52... Rh1+ {[%clk 0:12:54.8]} 53. Kg5 {[%clk 0:15:24.6]} 53... Rg1+
{[%clk 0:12:59]} 54. Kh6 {[%clk 0:15:28.7]} 54... Ke5 {[%clk 0:12:52.8]} 55. Rf2
{[%clk 0:15:31.2]} 55... Rh1+ {[%clk 0:12:52.4]} 56. Kg7 {[%clk 0:15:34.3]}
56... Rg1 {[%clk 0:12:53.3]} 57. Kh7 {[%clk 0:15:38.1]} 57... Rh1+ {[%clk
0:12:57]} 58. Kg8 {[%clk 0:15:41.8]} 58... Ke6 {[%clk 0:12:54.2]} 59. g7 {[%clk
0:15:43.6]} 59... Ke7 {[%clk 0:12:55.9]} 60. Rf7+ {[%clk 0:15:42.6]} 60... Ke8
{[%clk 0:13:00]} 61. Rf2 {[%clk 0:15:43.3]} 61... Ke7 {[%clk 0:13:01.1]} 62.
Re2+ {[%clk 0:15:30.1]} 62... Kf6 {[%clk 0:12:53.2]} 63. Kf8 {[%clk 0:15:30.5]}
63... Rg1 {[%clk 0:12:21.7]} 64. g8=Q {[%clk 0:15:30.1]} 64... Rxg8+ {[%clk
0:12:25.9]} 65. Kxg8 {[%clk 0:15:35]} 65... Kf5 {[%clk 0:12:29.8]} 66. Kf7
{[%clk 0:15:39.2]} 66... Kf4 {[%clk 0:12:34.3]} 67. Kf6 {[%clk 0:15:43.3]} 67...
Kf3 {[%clk 0:12:38.7]} 68. Re5 {[%clk 0:15:47.1]} 68... Kf4 {[%clk 0:12:42.4]}
69. Ke6 {[%clk 0:15:51.1]} 69... Kf3 {[%clk 0:12:45.9]} 70. Kf5 {[%clk 0:15:56]}
70... Kg3 {[%clk 0:12:49.7]} 71. Re4 {[%clk 0:16:00.9]} 71... Kf3 {[%clk
0:12:53.8]} 72. Ke5 {[%clk 0:16:04]} 72... Kg3 {[%clk 0:12:57.2]} 73. Rf4 {[%clk
0:16:08.5]} 73... Kh3 {[%clk 0:13:00.6]} 74. Kf5 {[%clk 0:16:13.1]} 74... Kg3
{[%clk 0:13:04.9]} 75. Kg5 {[%clk 0:16:17.6]} 75... Kh3 {[%clk 0:13:08.6]} 76.
Rg4 {[%clk 0:16:21.7]} 76... Kh2 {[%clk 0:13:12.7]} 77. Kf4 {[%clk 0:16:26.6]}
77... Kh3 {[%clk 0:13:16.1]} 78. Kf3 {[%clk 0:16:31.5]} 78... Kh2 {[%clk
0:13:19.4]} 79. Rg3 {[%clk 0:16:35.3]} 79... Kh1 {[%clk 0:13:23.4]} 80. Kf2
{[%clk 0:16:40.2]} 80... Kh2 {[%clk 0:13:26.3]} 81. Rf3 {[%clk 0:16:44.8]} 81...
Kh1 {[%clk 0:13:26.5]} 82. Rh3# {[%clk 0:16:48.6]} 1-0

[Event "Live Chess"]
[Site "Chess.com"]
[Date "2023.09.16"]
[Round "-"]
[White "Gabriel0298"]
[Black "Capi-D-Vara"]
[Result "1-0"]
[WhiteElo "1604"]
[BlackElo "1271"]
[TimeControl "900+5"]
[EndTime "16:04:19 PDT"]
[Termination "Gabriel0298 venceu por desistência"]

1. e4 {[%clk 0:15:03.1]} 1... c5 {[%clk 0:14:59.1]} 2. Nf3 {[%clk 0:15:06.5]}
2... a6 {[%clk 0:15:02.7]} 3. d4 {[%clk 0:15:11.4]} 3... cxd4 {[%clk 0:15:05.6]}
4. Nxd4 {[%clk 0:15:16.3]} 4... Nf6 {[%clk 0:15:07.8]} 5. Nc3 {[%clk 0:15:19.5]}
5... g6 {[%clk 0:15:05.8]} 6. Bg5 {[%clk 0:15:21.5]} 6... Bg7 {[%clk 0:15:07]}
7. Bc4 {[%clk 0:15:24.1]} 7... Qa5 {[%clk 0:14:10.6]} 8. Qd2 {[%clk 0:15:20.5]}
8... b5 {[%clk 0:14:14]} 9. Bd5 {[%clk 0:15:20.9]} 9... Nxd5 {[%clk 0:14:07.9]}
10. exd5 {[%clk 0:15:25.8]} 10... Bb7 {[%clk 0:14:12.3]} 11. O-O-O {[%clk
0:15:27.8]} 11... b4 {[%clk 0:14:03.6]} 12. Nce2 {[%clk 0:15:28.4]} 12... Qxa2
{[%clk 0:12:59.2]} 13. Qxb4 {[%clk 0:15:15.5]} 13... f6 {[%clk 0:13:02.4]} 14.
Qxb7 {[%clk 0:15:16.4]} 14... fxg5 {[%clk 0:13:03.8]} 15. Qxa8 {[%clk
0:15:20.2]} 15... O-O {[%clk 0:13:03.2]} 16. Qb7 {[%clk 0:15:16.3]} 16... Qa1+
{[%clk 0:11:51]} 17. Kd2 {[%clk 0:15:19.4]} 17... Qa5+ {[%clk 0:11:55.9]} 18. c3
{[%clk 0:15:18.1]} 18... g4 {[%clk 0:11:41.3]} 19. Ra1 {[%clk 0:15:05.5]} 1-0

[Event "Live Chess"]
[Site "Chess.com"]
[Date "2023.09.16"]
[Round "-"]
[White "Arthur_Maciel"]
[Black "Tercette"]
[Result "1-0"]
[WhiteElo "1119"]
[BlackElo "165"]
[TimeControl "900+5"]
[EndTime "16:04:55 PDT"]
[Termination "Arthur_Maciel venceu por xeque-mate"]

1. e4 {[%clk 0:15:03.2]} 1... e5 {[%clk 0:15:02]} 2. Nf3 {[%clk 0:15:06.7]} 2...
Nc6 {[%clk 0:14:57.9]} 3. Bc4 {[%clk 0:15:07.9]} 3... Nf6 {[%clk 0:14:59.8]} 4.
O-O {[%clk 0:15:10.5]} 4... Bd6 {[%clk 0:14:57.6]} 5. d3 {[%clk 0:15:13.1]} 5...
O-O {[%clk 0:15:01]} 6. c3 {[%clk 0:15:17.4]} 6... Na5 {[%clk 0:14:58.6]} 7.
Nbd2 {[%clk 0:15:09.9]} 7... Nxc4 {[%clk 0:15:02]} 8. dxc4 {[%clk 0:15:13.6]}
8... Bc5 {[%clk 0:15:03.1]} 9. h3 {[%clk 0:15:08]} 9... Nxe4 {[%clk 0:15:03.8]}
10. Nxe4 {[%clk 0:15:07.1]} 10... h6 {[%clk 0:15:02.3]} 11. Nxc5 {[%clk
0:15:10.4]} 11... Re8 {[%clk 0:15:04.7]} 12. Re1 {[%clk 0:15:12.7]} 12... Qe7
{[%clk 0:15:07.6]} 13. Rxe5 {[%clk 0:15:12.6]} 13... Qxc5 {[%clk 0:15:08.7]} 14.
Rxc5 {[%clk 0:15:01.4]} 14... d6 {[%clk 0:15:12.2]} 15. Rxc7 {[%clk 0:15:01.4]}
15... Rd8 {[%clk 0:15:11.9]} 16. Nd4 {[%clk 0:14:48]} 16... b5 {[%clk
0:15:15.2]} 17. Qf3 {[%clk 0:14:44.6]} 17... bxc4 {[%clk 0:15:18.8]} 18. Qxa8
{[%clk 0:14:38]} 18... Kh7 {[%clk 0:15:15.4]} 19. Rxc8 {[%clk 0:14:40.8]} 19...
Rxc8 {[%clk 0:15:18.4]} 20. Qxc8 {[%clk 0:14:44.5]} 20... f5 {[%clk 0:15:20.4]}
21. Qxf5+ {[%clk 0:14:47.8]} 21... Kg8 {[%clk 0:15:23.1]} 22. Bxh6 {[%clk
0:14:49.3]} 22... gxh6 {[%clk 0:15:25.5]} 23. Ne6 {[%clk 0:14:48.5]} 23... d5
{[%clk 0:15:27]} 24. Qg6+ {[%clk 0:14:49.9]} 24... Kh8 {[%clk 0:15:25.2]} 25.
Qg7# {[%clk 0:14:54.1]} 1-0

[Event "Live Chess"]
[Site "Chess.com"]
[Date "2023.09.16"]
[Round "-"]
[White "GustavoFarinha"]
[Black "silvaaps"]
[Result "1-0"]
[WhiteElo "1692"]
[BlackElo "760"]
[TimeControl "900+5"]
[EndTime "16:07:03 PDT"]
[Termination "GustavoFarinha venceu por desistência"]

1. e4 {[%clk 0:15:03.3]} 1... d5 {[%clk 0:15:03.9]} 2. exd5 {[%clk 0:15:06.5]}
2... Qxd5 {[%clk 0:15:08.6]} 3. Nc3 {[%clk 0:15:10.9]} 3... Qe5+ {[%clk
0:15:13.1]} 4. Qe2 {[%clk 0:15:13.4]} 4... Qxe2+ {[%clk 0:15:17.7]} 5. Ngxe2
{[%clk 0:15:17.5]} 5... e6 {[%clk 0:15:22.3]} 6. g3 {[%clk 0:15:21.8]} 6... Bb4
{[%clk 0:15:26.8]} 7. Bg2 {[%clk 0:15:26.4]} 7... Bxc3 {[%clk 0:15:30.8]} 8.
bxc3 {[%clk 0:15:29.4]} 8... c6 {[%clk 0:15:34.9]} 9. Bb2 {[%clk 0:15:32.4]}
9... Ne7 {[%clk 0:15:39.1]} 10. c4 {[%clk 0:15:36.2]} 10... O-O {[%clk
0:15:43.6]} 11. O-O {[%clk 0:15:39.7]} 11... a5 {[%clk 0:15:42.3]} 12. d4 {[%clk
0:15:43.3]} 12... f6 {[%clk 0:15:45.6]} 13. Rab1 {[%clk 0:15:40.1]} 13... e5
{[%clk 0:15:44.8]} 14. dxe5 {[%clk 0:15:43.3]} 14... fxe5 {[%clk 0:15:48.5]} 15.
Ba3 {[%clk 0:15:46.9]} 15... Re8 {[%clk 0:15:45.8]} 16. Nc3 {[%clk 0:15:14.5]}
16... b6 {[%clk 0:15:43.2]} 17. Ne4 {[%clk 0:15:17.7]} 17... Nd7 {[%clk
0:15:43]} 18. Nd6 {[%clk 0:15:17.8]} 18... Rf8 {[%clk 0:15:47.3]} 19. Nxc8
{[%clk 0:15:20.2]} 19... Raxc8 {[%clk 0:15:51.7]} 20. Bxe7 {[%clk 0:15:24.2]}
20... Rfe8 {[%clk 0:15:53.8]} 21. Bd6 {[%clk 0:15:22]} 21... e4 {[%clk
0:15:56.7]} 22. Rfe1 {[%clk 0:15:12.3]} 22... Nf6 {[%clk 0:15:59.4]} 23. Rxb6
{[%clk 0:14:57.7]} 23... Re6 {[%clk 0:15:50.2]} 24. Rb8 {[%clk 0:13:44]} 24...
Rxb8 {[%clk 0:15:50.1]} 25. Bxb8 {[%clk 0:13:48.9]} 25... Nd7 {[%clk 0:15:49.6]}
26. Ba7 {[%clk 0:13:47.9]} 26... c5 {[%clk 0:15:53.5]} 27. Rxe4 {[%clk
0:13:40.3]} 27... Rxe4 {[%clk 0:15:51.6]} 28. Bxe4 {[%clk 0:13:43.1]} 28... Kf7
{[%clk 0:15:51.8]} 29. Bc6 {[%clk 0:13:37.5]} 29... Ke6 {[%clk 0:15:55.5]} 30.
Bxd7+ {[%clk 0:13:40.7]} 30... Kxd7 {[%clk 0:15:59.7]} 31. Bxc5 {[%clk
0:13:45.3]} 31... Kc6 {[%clk 0:16:04.4]} 32. Bd4 {[%clk 0:13:46.2]} 1-0